bitfinex/quotes_SOLUSD_20240909
["timestamp","ask_amount","ask_price","bid_price","bid_amount"]
[1725921297709,45.12549,134.62,134.52,21.2982]
[1725921298281,45.12549,134.62,134.5,0.848155]
[1725921298282,0.12549,134.6,134.5,0.848155]
[1725921298502,45.12549,134.6,134.5,0.848155]
[1725921299107,45.12549,134.6,134.5,20.848155]
[1725921300204,45.12549,134.6,134.5,31.24210994]
[1725921300411,0.12549,134.6,134.5,31.24210994]
[1725921301003,0.12549,134.6,134.51,50.0]
[1725921301208,0.12549,134.6,134.52,20.0]
[1725921301387,21.9887,134.61,134.52,20.0]
[1725921301706,21.9887,134.61,134.52,30.39395494]
[1725921305710,0.12549,134.6,134.52,20.0]
[1725921305897,0.12549,134.6,134.51,50.0]
[1725921306207,0.12549,134.6,134.52,20.0]
[1725921307280,21.9887,134.61,134.52,20.0]
[1725921307487,21.9887,134.61,134.53,10.39395494]
[1725921307711,21.9887,134.61,134.54,20.0]
[1725921308213,21.9887,134.61,134.52,20.0]
[1725921308785,1.29365477,134.6,134.52,20.0]
[1725921311114,1.29365477,134.6,134.52,30.39395494]
[1725921312891,1.29365477,134.6,134.54,10.39395494]
[1725921313187,1.29365477,134.6,134.55,20.0]
[1725921313389,15.8904,134.61,134.55,20.0]
[1725921318894,16.80713573,134.64,134.56,10.39395494]
[1725921319103,16.80713573,134.64,134.58,10.39395494]
[1725921319320,15.5137,134.64,134.59,20.0]
[1725921320121,21.5592,134.64,134.54,72.4815]
[1725921320312,0.12549,134.63,134.55,20.0]
[1725921321519,21.5592,134.64,134.56,10.39395494]
[1725921321701,21.5592,134.64,134.57,70.0]
[1725921326906,0.12549,134.63,134.57,20.0]
[1725921327099,0.12549,134.63,134.56,20.0]
[1725921328601,21.5592,134.64,134.56,70.0]
[1725921335307,21.5592,134.64,134.57,10.39395494]
[1725921335508,21.5592,134.64,134.58,71.48550317]
[1725921335706,15.5137,134.64,134.58,71.48550317]
[1725921336711,15.5137,134.64,134.58,70.0]
[1725921336913,1.29305432,134.69,134.62,10.39395494]
[1725921336914,16.5567,134.68,134.62,10.39395494]
[1725921337117,16.5567,134.68,134.64,10.39395494]
[1725921337340,16.5567,134.68,134.65,1.48499713]
[1725921337627,22.3355,134.71,134.65,1.48499713]
[1725921338331,16.1181,134.71,134.66,10.39395494]
[1725921338632,16.1181,134.71,134.67,1.48471435]
[1725921338821,16.1181,134.71,134.68,1.48469874]
[1725921339014,16.1181,134.71,134.66,10.39395494]
[1725921340404,16.1181,134.71,134.64,50.0]
[1725921340625,16.1181,134.71,134.65,20.0]
[1725921341228,16.1181,134.71,134.65,50.0]
[1725921341431,16.1181,134.71,134.66,20.0]
[1725921349814,16.1181,134.71,134.64,60.39395494]
[1725921350019,16.1181,134.71,134.65,20.0]
[1725921350514,16.1181,134.71,134.64,20.0]
[1725921357927,16.1181,134.71,134.65,10.39395494]
[1725921358137,16.1181,134.71,134.66,20.0]
[1725921365053,0.12549,134.7,134.6,50.0]
[1725921365233,0.12549,134.7,134.61,30.39395494]
[1725921365642,0.07549,134.7,134.61,30.39395494]
[1725921369454,6.2468,134.69,134.59,21.974]
[1725921369759,6.2468,134.69,134.58,50.0]
[1725921369760,15.68809,134.68,134.58,60.39395494]
[1725921369931,15.68809,134.68,134.58,50.0]
[1725921370330,15.68809,134.68,134.58,60.39395494]
[1725921371737,15.68809,134.68,134.59,20.0]
[1725921375934,0.12549,134.66,134.59,20.0]
[1725921376338,22.8781,134.65,134.59,20.0]
[1725921376858,22.8781,134.65,134.57,20.0]
[1725921377551,0.12549,134.64,134.57,20.0]
[1725921377865,0.12549,134.64,134.56,50.0]
[1725921379358,0.12549,134.64,134.57,20.0]
[1725921382768,22.8781,134.65,134.57,20.0]
[1725921383060,6.70089,134.6,134.5,50.848155]
[1725921383260,6.70089,134.6,134.52,10.39395494]
[1725921385268,6.70089,134.6,134.53,20.0]
[1725921388571,6.70089,134.6,134.52,20.0]
[1725921388865,6.70089,134.6,134.52,70.0]
[1725921390768,6.70089,134.6,134.52,20.0]
[1725921391058,16.1716,134.57,134.5,8.54804047]
[1725921392551,16.1716,134.57,134.51,20.0]
[1725921394854,16.1716,134.57,134.51,30.39395494]
[1725921395172,16.1716,134.57,134.51,20.0]
[1725921396679,16.1716,134.57,134.51,30.39395494]
[1725921397780,16.1716,134.57,134.51,80.39395494]
[1725921398151,16.1716,134.57,134.51,30.39395494]
[1725921398775,16.1716,134.57,134.51,80.39395494]
[1725921399276,16.1716,134.57,134.51,30.39395494]
[1725921399967,16.1716,134.57,134.51,20.0]
[1725921405877,16.1716,134.57,134.5,8.54804047]
[1725921405878,0.12549,134.56,134.5,8.54804047]
[1725921406458,16.1716,134.57,134.5,18.94199541]
[1725921407685,16.1716,134.57,134.51,20.0]
[1725921410679,6.4367,134.56,134.51,20.0]
[1725921411887,6.4367,134.56,134.39,32.32]
[1725921411888,0.12549,134.5,134.38,1.29407737]
[1725921412057,0.12549,134.5,134.38,60.39395494]
[1725921412262,0.12549,134.48,134.37,10.39395494]
[1725921412569,0.12549,134.46,134.37,10.39395494]
[1725921413379,0.12549,134.46,134.36,11.24210994]
[1725921413606,45.12549,134.46,134.36,61.24210994]
[1725921413887,0.12549,134.46,134.36,50.848155]
[1725921414969,0.12549,134.46,134.37,60.39395494]
[1725921415290,45.12549,134.46,134.36,0.848155]
[1725921416478,45.12549,134.46,134.36,50.848155]
[1725921416659,45.12549,134.46,134.37,20.0]
[1725921417985,0.12549,134.46,134.37,20.0]
[1725921420192,6.6055,134.44,134.36,0.848155]
[1725921421273,0.12549,134.43,134.36,0.848155]
[1725921421479,6.6055,134.44,134.36,0.848155]
[1725921421665,0.12549,134.43,134.36,20.848155]
[1725921422289,6.6055,134.44,134.36,20.848155]
[1725921423276,0.12549,134.43,134.36,0.848155]
[1725921423478,45.12549,134.43,134.36,0.848155]
[1725921426393,0.12549,134.41,134.36,0.848155]
[1725921426572,16.4691,134.4,134.36,0.848155]
[1725921426776,0.12549,134.39,134.36,0.848155]
[1725921426979,0.12549,134.37,134.36,0.848155]
[1725921427367,6.4571,134.38,134.36,0.848155]
[1725921428290,6.4571,134.38,134.26,50.0]
[1725921428291,11.46939,134.37,134.26,50.0]
[1725921428503,11.3439,134.37,134.28,50.0]
[1725921428790,11.3439,134.37,134.3,50.0]
[1725921429168,6.4571,134.38,134.32,50.0]
[1725921429372,6.4571,134.38,134.3,66.29687389]
[1725921429571,6.4571,134.38,134.31,20.0]
[1725921429995,6.4571,134.38,134.32,50.0]
[1725921430368,6.4571,134.38,134.31,20.0]
[1725921430580,6.4571,134.38,134.3,20.0]
[1725921430581,5.47345965,134.38,134.3,20.0]
[1725921431278,0.12549,134.37,134.26,50.0]
[1725921432676,0.12549,134.37,134.27,20.0]
[1725921438176,0.12549,134.37,134.27,30.44570739]
[1725921439980,16.448,134.36,134.27,30.44570739]
[1725921445181,16.448,134.36,134.27,20.0]
[1725921446495,1.29445966,134.35,134.27,20.0]
[1725921446696,1.29445966,134.35,134.27,30.44570739]
[1725921448492,16.448,134.36,134.28,51.48885185]
[1725921448691,16.448,134.36,134.29,20.0]
[1725921448889,16.448,134.36,134.3,1.48865345]
[1725921450098,16.448,134.36,134.29,20.0]
[1725921450285,16.448,134.36,134.29,30.44570739]
[1725921450686,16.448,134.36,134.31,10.44570739]
[1725921450909,15.0581,134.39,134.33,10.44570739]
[1725921451215,6.0953,134.42,134.34,70.0]
[1725921451590,6.0953,134.42,134.36,50.0]
[1725921451912,6.0953,134.42,134.37,10.44570739]
[1725921452414,15.9376,134.43,134.37,10.44570739]
[1725921452624,15.9376,134.43,134.38,71.48781159]
[1725921452907,6.5718,134.45,134.39,10.44570739]
[1725921455098,16.80732938,134.46,134.39,10.44570739]
[1725921455621,16.80732938,134.46,134.38,70.0]
[1725921455622,1.29352938,134.46,134.41,10.44570739]
[1725921455914,6.2864,134.48,134.41,10.44570739]
[1725921460296,6.2864,134.48,134.42,50.0]
[1725921461013,15.0699,134.49,134.42,50.0]
[1725921461195,15.0699,134.49,134.43,30.44570739]
[1725921461595,15.01948686,134.51,134.44,50.0]
[1725921461809,1.293121,134.51,134.44,50.0]
[1725921463617,1.293121,134.51,134.43,36.408]
[1725921464824,1.293121,134.51,134.43,20.0]
[1725921465910,1.293121,134.51,134.42,20.0]
[1725921466730,1.293121,134.51,134.42,70.0]
[1725921478007,1.293121,134.51,134.43,10.44570739]
[1725921479525,1.293121,134.51,134.42,70.0]
[1725921481824,1.293121,134.51,134.44,50.0]
[1725921482128,6.2741,134.52,134.45,20.0]
[1725921482449,6.2741,134.52,134.45,30.44570739]
[1725921483135,6.2741,134.52,134.46,50.0]
[1725921483323,15.6094,134.53,134.47,31.93246334]
[1725921483524,15.6094,134.53,134.47,30.44570739]
[1725921488035,15.6094,134.53,134.42,50.0]
[1725921488231,15.6094,134.53,134.42,60.44570739]
[1725921488528,0.12549,134.52,134.42,60.44570739]
[1725921489045,6.1046,134.51,134.42,60.44570739]
[1725921490120,6.1046,134.51,134.42,50.0]
[1725921490516,6.1046,134.51,134.43,5.0]
[1725921490715,6.1046,134.51,134.42,50.0]
[1725921492433,6.1046,134.51,134.41,6.2645]
[1725921492632,6.1046,134.51,134.43,50.0]
[1725921492938,6.1046,134.51,134.44,20.0]
[1725921494720,15.6094,134.53,134.46,50.0]
[1725921495041,15.6094,134.53,134.47,20.0]
[1725921496730,6.46799,134.52,134.4,65.4252]
[1725921496924,6.46799,134.52,134.4,81.71170256]
[1725921498318,6.46799,134.52,134.4,84.72776886]
[1725921498519,6.46799,134.52,134.43,50.0]
[1725921498716,6.3425,134.52,134.43,50.0]
[1725921498922,6.3425,134.52,134.44,20.0]
[1725921500629,6.3425,134.52,134.45,50.0]
[1725921500815,6.3425,134.52,134.46,20.0]
[1725921501434,6.3425,134.52,134.44,16.28650256]
[1725921501435,6.3425,134.52,134.45,20.0]
[1725921502419,6.3425,134.52,134.45,70.0]
[1725921504048,6.3425,134.52,134.46,45.0]
[1725921504221,6.3425,134.52,134.47,20.0]
[1725921509544,6.3425,134.52,134.45,20.0]
[1725921509923,6.3425,134.52,134.44,20.0]
[1725921512125,6.3425,134.52,134.44,30.41831798]
[1725921513836,6.3425,134.52,134.46,10.41831798]
[1725921514034,6.3425,134.52,134.47,21.48690283]
[1725921514240,6.3425,134.52,134.47,20.0]
[1725921515527,6.3425,134.52,134.44,20.0]
[1725921519155,6.3425,134.52,134.45,61.90533552]
[1725921519336,6.3425,134.52,134.46,21.48688146]
[1725921519741,6.3425,134.52,134.46,20.0]
[1725921521967,0.12549,134.51,134.46,20.0]
[1725921522252,6.3425,134.52,134.43,60.41831798]
[1725921522470,6.3425,134.52,134.44,20.0]
[1725921522843,6.3425,134.52,134.45,10.41831798]
[1725921523056,6.3425,134.52,134.46,20.0]
[1725921529535,6.3425,134.52,134.47,10.41831798]
[1725921529750,6.3425,134.52,134.48,20.0]
[1725921530034,15.6094,134.53,134.48,20.0]
[1725921538063,15.6094,134.53,134.48,30.41831798]
[1725921542066,6.2575,134.55,134.49,50.0]
[1725921542366,6.2575,134.55,134.48,30.41831798]
[1725921544869,6.2575,134.55,134.48,20.0]
[1725921546466,6.2575,134.55,134.49,10.41831798]
[1725921547549,6.2575,134.55,134.48,20.0]
[1725921558167,6.2575,134.55,134.49,60.41831798]
[1725921558369,31.67043609,134.56,134.49,60.41831798]
[1725921558370,31.67043609,134.56,134.51,50.0]
[1725921562995,31.67043609,134.56,134.5,45.0]
[1725921562996,31.67043609,134.56,134.5,95.0]
[1725921563170,31.67043609,134.56,134.51,20.0]
[1725921565273,15.06143609,134.56,134.51,20.0]
[1725921565487,6.3912,134.58,134.51,20.0]
[1725921567190,15.1865,134.56,134.49,20.0]
[1725921570181,15.1865,134.56,134.48,50.0]
[1725921570569,15.1865,134.56,134.49,20.0]
[1725921572095,15.1865,134.56,134.5,1.48649165]
[1725921572272,15.1865,134.56,134.49,20.0]
[1725921574091,15.1865,134.56,134.5,50.0]
[1725921575496,15.1865,134.56,134.49,70.0]
[1725921575675,15.1865,134.56,134.49,20.0]
[1725921575876,15.1865,134.56,134.48,20.0]
[1725921576096,15.1865,134.56,134.49,45.0]
[1725921576480,15.1865,134.56,134.5,20.0]
[1725921580399,15.1865,134.56,134.48,20.0]
[1725921589392,6.1761,134.54,134.48,20.0]
[1725921589801,16.2189,134.53,134.47,20.0]
[1725921593101,16.2189,134.53,134.46,7.66632202]
[1725921605126,0.12549,134.52,134.46,7.66632202]
[1725921606514,16.2189,134.53,134.44,50.0]
[1725921606833,16.2189,134.53,134.46,50.0]
[1725921606999,16.2189,134.53,134.47,20.0]
[1725921612434,16.2189,134.53,134.45,20.0]
[1725921615940,16.2189,134.53,134.45,30.41831798]
[1725921616311,16.2189,134.53,134.45,20.0]
[1725921616512,0.12549,134.52,134.42,57.6455031]
[1725921617827,0.12549,134.52,134.42,68.06382108]
[1725921618135,21.8692,134.51,134.43,20.0]
[1725921618322,0.12549,134.5,134.43,20.0]
[1725921619130,15.74579,134.48,134.38,59.0649378]
[1725921619332,15.74579,134.46,134.36,10.41831798]
[1725921619548,15.74579,134.46,134.37,50.0]
[1725921620124,15.6203,134.46,134.39,50.0]
[1725921620437,15.6203,134.49,134.42,10.41831798]
[1725921620663,15.6203,134.49,134.43,20.0]
[1725921621023,15.6203,134.49,134.37,50.0]
[1725921621331,21.8692,134.48,134.36,15.5649]
[1725921621639,15.6203,134.47,134.35,66.87791798]
[1725921622141,15.6203,134.47,134.42,60.41831798]
[1725921622333,15.6203,134.47,134.42,10.41831798]
[1725921622739,15.6203,134.47,134.43,20.0]
[1725921623842,16.1426,134.55,134.43,20.0]
[1725921624045,81.1426,134.54,134.43,20.0]
[1725921624216,36.1426,134.54,134.44,60.41831798]
[1725921624412,16.1426,134.54,134.45,20.0]
[1725921625440,16.1426,134.54,134.43,20.0]
[1725921626544,45.12549,134.53,134.43,20.0]
[1725921628225,0.12549,134.51,134.43,20.0]
[1725921628425,45.12549,134.51,134.41,20.0]
[1725921629222,45.12549,134.51,134.42,50.0]
[1725921629430,0.12549,134.51,134.43,20.0]
[1725921632255,23.302,134.52,134.44,60.41831798]
[1725921632423,23.302,134.52,134.45,65.0]
[1725921632924,23.302,134.52,134.46,60.41831798]
[1725921634553,16.6584,134.52,134.46,60.41831798]
[1725921639351,23.3084,134.55,134.47,20.0]
[1725921639758,23.3084,134.55,134.48,60.41831798]
[1725921640336,23.3084,134.55,134.47,20.12549]
[1725921646561,23.3084,134.55,134.47,20.0]
[1725921646861,23.3084,134.55,134.46,70.0]
[1725921649669,23.3084,134.55,134.46,20.0]
[1725921649962,0.12549,134.54,134.46,20.0]
[1725921650446,0.12549,134.54,134.45,20.0]
[1725921651837,23.3084,134.55,134.46,105.41831798]
[1725921652043,23.3084,134.55,134.47,20.0]
[1725921657976,0.12549,134.54,134.47,20.0]
[1725921658172,6.2497,134.51,134.45,20.0]
[1725921658347,6.2497,134.51,134.43,20.0]
[1725921659971,15.427,134.5,134.41,7.66941193]
[1725921660267,0.12549,134.49,134.39,45.64393669]
[1725921660671,0.12549,134.49,134.41,50.0]
[1725921661470,15.427,134.5,134.42,1.48740836]
[1725921661761,15.427,134.5,134.43,73.91722669]
[1725921661964,15.427,134.5,134.44,20.0]
[1725921666482,15.427,134.5,134.41,20.0]
[1725921666849,0.12549,134.49,134.41,20.0]
[1725921667087,15.427,134.5,134.42,50.0]
[1725921667373,15.427,134.5,134.44,50.0]
[1725921667747,15.427,134.5,134.43,10.41831798]
[1725921667946,15.427,134.5,134.44,20.0]
[1725921668469,15.427,134.5,134.43,20.12549]
[1725921668854,15.427,134.5,134.43,20.0]
[1725921669059,15.427,134.5,134.4,50.0]
[1725921669249,15.427,134.5,134.4,60.41831798]
[1725921669964,0.12549,134.49,134.39,15.3029]
[1725921670171,0.12549,134.47,134.38,57.66730909]
[1725921670345,0.12549,134.47,134.36,50.0]
[1725921670346,0.12549,134.45,134.36,50.0]
[1725921670669,15.021,134.46,134.38,50.0]
[1725921671661,15.021,134.46,134.39,20.0]
[1725921672601,15.021,134.46,134.38,20.0]
[1725921674571,15.021,134.46,134.38,70.0]
[1725921674888,15.021,134.46,134.39,45.0]
[1725921675061,15.021,134.46,134.4,20.0]
[1725921676370,15.021,134.46,134.4,70.0]
[1725921676575,15.021,134.46,134.42,50.0]
[1725921676877,6.4651,134.48,134.43,20.0]
[1725921677265,6.4651,134.48,134.39,45.12549]
[1725921677455,6.4651,134.48,134.4,20.0]
[1725921677856,15.0653,134.47,134.4,70.0]
[1725921678381,15.0653,134.47,134.4,20.0]
[1725921678569,15.0653,134.47,134.4,70.0]
[1725921680259,15.0653,134.47,134.4,20.0]
[1725921680459,15.0653,134.47,134.4,70.0]
[1725921680758,15.0653,134.47,134.42,50.0]
[1725921680976,1.29397424,134.53,134.41,10.54380798]
[1725921680977,6.6323,134.51,134.45,10.41831798]
[1725921681179,6.6323,134.57,134.48,50.0]
[1725921681360,1.2936725,134.56,134.49,20.0]
[1725921681685,6.6323,134.57,134.49,20.0]
[1725921682060,6.6323,134.57,134.48,50.0]
[1725921682260,6.6323,134.57,134.49,20.0]
[1725921682668,16.2238,134.56,134.49,20.0]
[1725921682854,16.2238,134.56,134.45,20.0]
[1725921683381,45.12549,134.55,134.45,20.0]
[1725921683986,0.12549,134.53,134.45,20.0]
[1725921684166,45.12549,134.53,134.44,20.0]
[1725921684755,0.12549,134.53,134.44,70.0]
[1725921684957,22.8561,134.54,134.44,70.0]
[1725921685281,0.12549,134.53,134.44,70.0]
[1725921686479,22.8561,134.54,134.44,70.0]
[1725921688878,22.8561,134.54,134.46,50.0]
[1725921689178,22.8561,134.54,134.47,20.0]
[1725921696278,22.8561,134.54,134.47,30.41831798]
[1725921696970,22.8561,134.54,134.48,1.48666042]
[1725921697286,22.8561,134.54,134.48,50.0]
[1725921697895,22.8561,134.54,134.49,20.0]
[1725921699693,22.8561,134.54,134.47,20.0]
[1725921700785,22.8561,134.54,134.48,50.0]
[1725921700983,22.8561,134.54,134.49,20.0]
[1725921705505,22.8561,134.54,134.47,20.0]
[1725921708386,22.8561,134.54,134.48,50.0]
[1725921708592,22.8561,134.54,134.49,20.0]
[1725921716611,16.2238,134.54,134.5,50.0]
[1725921719108,6.528,134.57,134.51,20.0]
[1725921719323,21.923,134.57,134.51,20.0]
[1725921724610,21.923,134.57,134.49,20.0]
[1725921724807,0.12549,134.56,134.47,20.0]
[1725921726193,21.923,134.57,134.48,50.0]
[1725921726400,21.923,134.57,134.49,20.0]
[1725921727887,21.923,134.57,134.5,50.0]
[1725921728898,21.923,134.57,134.49,20.0]
[1725921732791,0.12549,134.56,134.49,20.0]
[1725921732992,45.12549,134.56,134.47,20.0]
[1725921735887,6.40019,134.54,134.43,26.03288874]
[1725921736098,45.0,134.53,134.44,50.0]
[1725921736310,6.2747,134.54,134.44,62.03586316]
[1725921737102,6.2747,134.54,134.45,20.0]
[1725921738818,16.13979,134.53,134.45,20.0]
[1725921739115,61.13979,134.53,134.45,20.0]
[1725921741818,61.13979,134.53,134.44,20.0]
[1725921741996,61.13979,134.53,134.44,70.0]
[1725921742322,61.13979,134.53,134.44,20.0]
[1725921742522,61.13979,134.53,134.44,70.0]
[1725921743413,61.13979,134.53,134.44,20.0]
[1725921743919,61.13979,134.53,134.43,20.12549]
[1725921744123,61.13979,134.53,134.43,20.0]
[1725921744295,0.12549,134.49,134.42,7.67662208]
[1725921744492,0.12549,134.49,134.38,50.0]
[1725921744493,16.3296,134.47,134.38,60.41831798]
[1725921745699,16.3296,134.47,134.39,65.0]
[1725921746017,16.3296,134.47,134.4,50.0]
[1725921746221,16.3296,134.47,134.41,20.0]
[1725921746429,16.3296,134.47,134.41,82.03586316]
[1725921746716,16.3296,134.47,134.42,57.16135316]
[1725921746898,16.3296,134.47,134.43,20.0]
[1725921748112,16.3296,134.47,134.42,20.0]
[1725921748517,16.3296,134.47,134.4,20.12549]
[1725921749627,16.3296,134.47,134.4,20.0]
[1725921759327,0.12549,134.46,134.38,20.0]
[1725921760635,16.3296,134.47,134.39,13.52363156]
[1725921760928,16.3296,134.47,134.4,21.48765169]
[1725921761509,16.3296,134.47,134.4,30.41831798]
[1725921761726,16.3296,134.47,134.41,1.48747918]
[1725921762129,16.3296,134.47,134.4,30.41831798]
[1725921764830,16.3296,134.47,134.42,50.0]
[1725921765028,16.3296,134.47,134.43,20.0]
[1725921766423,16.3296,134.47,134.44,1.48725605]
[1725921767340,16.3296,134.47,134.43,20.0]
[1725921768423,22.1107,134.51,134.44,107.03103933]
[1725921768719,22.1107,134.51,134.45,20.0]
[1725921771023,22.1107,134.51,134.46,1.48694492]
[1725921771343,22.1107,134.51,134.45,20.0]
[1725921773320,22.1107,134.51,134.46,60.41831798]
[1725921773526,22.1107,134.51,134.47,20.0]
[1725921775035,22.1107,134.51,134.45,20.0]
[1725921780765,22.1107,134.51,134.43,20.0]
[1725921781133,22.1107,134.51,134.42,50.0]
[1725921782333,0.12549,134.5,134.4,78.62417849]
[1725921782539,0.12549,134.5,134.41,20.0]
[1725921782743,0.12549,134.5,134.4,90.66004165]
[1725921783360,15.5301,134.49,134.4,77.17542704]
[1725921783540,15.5301,134.49,134.4,79.92283359]
[1725921783741,15.5301,134.49,134.41,12.03586316]
[1725921784139,15.5301,134.49,134.42,70.0]
[1725921784361,15.5301,134.49,134.44,50.0]
[1725921784537,15.5301,134.49,134.45,20.0]
[1725921790571,15.5301,134.49,134.45,30.41831798]
[1725921790768,6.5837,134.51,134.45,30.41831798]
[1725921791069,6.5837,134.51,134.46,95.0]
[1725921791379,6.5837,134.51,134.47,20.0]
[1725921791746,16.5599,134.52,134.47,20.0]
[1725921805285,6.447,134.54,134.48,50.0]
[1725921805588,6.447,134.54,134.49,20.0]
[1725921805756,6.447,134.54,134.5,1.48657524]
[1725921806173,6.447,134.54,134.49,20.0]
[1725921812987,6.447,134.54,134.48,20.0]
[1725921821685,6.447,134.54,134.47,20.0]
[1725921825484,6.447,134.54,134.45,20.0]
[1725921826585,6.447,134.54,134.45,30.41831798]
[1725921826769,6.447,134.54,134.46,106.37455643]
[1725921827286,6.447,134.54,134.47,20.0]
[1725921828268,6.447,134.54,134.47,30.41831798]
[1725921828488,6.447,134.54,134.48,1.48683525]
[1725921828690,6.447,134.54,134.49,1.48672201]
[1725921829177,6.447,134.54,134.47,30.41831798]
[1725921840395,6.447,134.54,134.47,20.0]
[1725921841196,6.447,134.54,134.48,50.0]
[1725921841588,6.447,134.54,134.49,20.0]
[1725921842293,16.0592,134.55,134.5,50.0]
[1725921842597,16.0592,134.55,134.51,20.0]
[1725921846803,16.0592,134.55,134.51,30.41831798]
[1725921851304,16.0592,134.55,134.51,20.0]
[1725921851805,16.0592,134.55,134.49,20.0]
[1725921862009,16.0592,134.55,134.47,20.0]
[1725921862411,16.0592,134.55,134.5,10.41831798]
[1725921862600,16.0592,134.55,134.51,70.0]
[1725921863902,16.0592,134.55,134.51,20.0]
[1725921865229,6.4114,134.57,134.52,10.41831798]
[1725921865717,6.4114,134.57,134.53,20.0]
[1725921866726,16.5776,134.59,134.53,20.0]
[1725921869428,16.5776,134.59,134.5,30.41831798]
[1725921869606,16.5776,134.59,134.52,10.41831798]
[1725921869810,16.5776,134.59,134.53,20.0]
[1725921873811,24.79492007,134.6,134.56,10.41831798]
[1725921874021,24.79492007,134.6,134.58,10.41831798]
[1725921874226,16.4742,134.63,134.59,1.48579234]
[1725921875733,16.4742,134.63,134.53,20.0]
[1725921875907,0.12549,134.62,134.53,20.0]
[1725921876226,6.4219,134.61,134.53,20.0]
[1725921878103,15.14029,134.6,134.53,20.0]
[1725921878322,0.12549,134.56,134.47,7.75438297]
[1725921878517,0.12549,134.56,134.47,50.0]
[1725921879431,0.12549,134.56,134.46,10.41831798]
[1725921879811,0.12549,134.56,134.47,50.0]
[1725921880134,0.12549,134.56,134.46,10.41831798]
[1725921881326,21.2522,134.57,134.48,10.54380798]
[1725921881532,21.2522,134.57,134.5,10.41831798]
[1725921882616,21.2522,134.57,134.51,20.0]
[1725921883608,21.2522,134.57,134.52,1.48642977]
[1725921883932,15.0148,134.57,134.51,70.0]
[1725921884119,15.0148,134.57,134.52,10.41831798]
[1725921885728,15.0148,134.57,134.51,70.0]
[1725921886425,15.0148,134.57,134.51,20.0]
[1725921897844,15.0148,134.57,134.52,60.41831798]
[1725921898045,30.54778423,134.58,134.54,60.41831798]
[1725921898924,30.54778423,134.58,134.53,20.0]
[1725921901242,30.54778423,134.58,134.51,20.0]
[1725921902642,61.73169,134.57,134.51,20.0]
[1725921902820,61.73169,134.57,134.48,20.0]
[1725921903241,61.73169,134.57,134.48,70.0]
[1725921905340,61.73169,134.57,134.48,20.0]
[1725921906026,0.12549,134.55,134.46,57.75741559]
[1725921906226,45.12549,134.55,134.46,50.0]
[1725921907531,45.12549,134.55,134.47,20.0]
[1725921907845,45.12549,134.55,134.46,50.0]
[1725921909150,45.12549,134.55,134.47,20.0]
[1725921910131,0.12549,134.53,134.46,20.0]
[1725921910447,15.0311,134.54,134.46,20.0]
[1725921911831,45.12549,134.53,134.46,20.0]
[1725921912032,45.12549,134.53,134.45,20.0]
[1725921912548,6.1328,134.52,134.42,50.0]
[1725921913924,6.1328,134.52,134.43,20.0]
[1725921917024,16.0876,134.51,134.43,20.0]
[1725921920553,16.0876,134.51,134.32,267.245]
[1725921920554,0.12549,134.47,134.38,10.41831798]
[1725921920935,15.068,134.46,134.37,50.0]